fUST/lending_fUST_20250617
["ID","MTS","AMOUNT","RATE_DAILY","PERIOD"]
[366157577,1750091437973,-388.9836448,0.000237,4]
[366157578,1750091437983,-388.9836448,0.000237,4]
[366157579,1750091437992,-388.9836448,0.000237,4]
[366157580,1750091438002,-388.9836448,0.000237,4]
[366157581,1750091438011,-388.9836448,0.000237,4]
[366157582,1750091438021,-388.9836448,0.000237,4]
[366157583,1750091438030,-388.9836448,0.000237,4]
[366157584,1750091438040,-388.9836448,0.000237,4]
[366157585,1750091438049,-388.9836448,0.000237,4]
[366157587,1750091438058,-388.9836448,0.000237,4]
[366157589,1750091438068,-388.98,0.000237,4]
[366157590,1750091438077,-239.76,0.000237,4]
[366157591,1750091438087,-186.48626652,0.000237,4]
[366157592,1750091438096,-186.48626652,0.000237,4]
[366157593,1750091438105,-186.48,0.000237,4]
[366157594,1750091438115,-180.360393,0.00023744,2]
[366157595,1750091438124,-500.0,0.00023773,2]
[366157596,1750091438134,-500.0,0.00023773,2]
[366157597,1750091438158,-600.0,0.00023773,2]
[366157598,1750091438169,-502.17245355,0.0002378,2]
[366157599,1750091438179,-5342.84276912,0.00023799,3]
[366157600,1750091438190,-14989.15787586,0.000238,2]
[366157601,1750091438200,-27431.95634043,0.000238,2]
[366157602,1750091438211,-34133.5316506,0.000238,2]
[366157603,1750091438222,-880706.66033237,0.000238,3]
[366157622,1750091438784,-5000.0,0.00019737,2]
[366157623,1750091438794,-18719.46027825,0.000238,3]
[366157624,1750091438804,-6823.23432912,0.000238,5]
[366157625,1750091438814,-424.54874296,0.000238,3]
[366157626,1750091438824,-835.67987521,0.000238,3]
[366157627,1750091438834,-460.0,0.00023835,4]
[366157629,1750091438844,-556.42,0.00023835,4]
[366157631,1750091438854,-656.67,0.00023835,4]
[366157632,1750091438863,-515.9,0.00023835,4]
[366157633,1750091438874,-850.86,0.00023835,4]
[366157634,1750091438885,-773.57,0.00023835,4]
[366157635,1750091438895,-649.57,0.00023835,4]
[366157636,1750091438904,-626.8,0.00023835,4]
[366157637,1750091438914,-586.63,0.00023835,4]
[366157638,1750091438924,-168.0,0.0002388,2]
[366157639,1750091438933,-1694.65392258,0.000239,2]
[366157640,1750091438944,-1542.41665268,0.000239,2]
[366157641,1750091438953,-156.0,0.00024,2]
[366157642,1750091438963,-5000.0,0.00024,7]
[366157643,1750091438974,-354.91782929,0.00024,2]
[366157689,1750091440859,-6076.90185389,0.00024,2]
[366157965,1750091443725,-501.01,0.0002399,10]
[366157967,1750091443735,-628.203225,0.00024,2]
[366158705,1750091451666,3442.24301142,0.00019,2]
[366159499,1750091466862,2746.02685056,0.00019,2]
[366159500,1750091466887,2253.97314944,0.00019,2]
[366159501,1750091476489,153.01335538,6.8e-07,2]
[366159502,1750091476600,153.01335538,6.8e-07,2]
[366159503,1750091476783,153.01335538,6.8e-07,2]
[366159506,1750091482240,5000.0,0.00019,2]
[366159507,1750091497929,2286.98678442,0.00019,2]
[366159508,1750091497954,2713.01321558,0.00019,2]
[366159510,1750091513116,5000.0,0.00019,2]
[366159513,1750091528960,2286.98678442,0.00019,2]
[366159514,1750091528986,2713.01321558,0.00019,2]
[366159516,1750091545173,5000.0,0.00019,2]
[366159517,1750091550849,200.0,0.00023821,120]
[366159521,1750091560451,2286.98678442,0.00019,2]
[366159522,1750091560475,2713.01321558,0.00019,2]
[366159523,1750091575994,5000.0,0.00019,2]
[366159528,1750091591750,2286.98678442,0.00019,2]
[366159529,1750091591777,1457.27606975,0.00019,2]
[366159535,1750091665583,3998.5239705,0.00018452,2]
[366159536,1750091671129,200.0,0.00023674,120]
[366159537,1750091688104,666.0,0.0001852,2]
[366159540,1750091699092,567.7119902,0.0001852,2]
[366159543,1750091777322,153.01335536,6.8e-07,2]
[366159544,1750091785168,151.0,0.00019,2]
[366159546,1750091811364,159.242414,0.00018412,2]
[366159549,1750091833977,463.663784,0.00013699,2]
[366159550,1750091836199,151.0,0.00021918,60]
[366159556,1750091886806,249.0,0.00024658,120]
[366159559,1750091895612,1754.8740279,0.00018854,2]
[366159567,1750092000121,151.0,0.0002,31]
[366159568,1750092018204,198.4687629,0.00018643,2]
[366159569,1750092031057,200.0,0.00024588,120]
[366159571,1750092054975,290.0,0.00024658,120]
[366159572,1750092091303,200.0,0.00024265,120]
[366159576,1750092160477,400.0,0.00024657,120]
[366159577,1750092176934,430.22562539,0.00018177,2]
[366159578,1750092176960,4135.92698621,0.00018177,2]
[366159596,1750092337040,386.952691,0.00018174,2]
[366159600,1750092378395,1502.9364558,0.00018175,2]
[366159606,1750092388443,2652.255437,0.00018321,2]
[366159607,1750092389332,1321.92842999,0.00018175,2]
[366159608,1750092389356,10000.0,0.00018175,2]
[366159609,1750092389380,10000.0,0.00018175,2]
[366159610,1750092389403,3578.07157001,0.00018175,2]
[366159611,1750092408779,169.7854936,0.00018174,2]
[366159613,1750092457815,5000.0,0.00019,2]
[366159614,1750092473567,803.62987173,0.00019,2]
[366159615,1750092495705,448.51306466,0.00017,15]
[366159616,1750092495729,10000.0,0.00017,15]
[366159617,1750092495754,10000.0,0.00017,15]
[366159618,1750092495777,10000.0,0.00017,15]
[366159619,1750092495801,10000.0,0.00017,15]
[366159620,1750092495825,10000.0,0.00017,15]
[366159621,1750092495849,10000.0,0.00017,15]
[366159622,1750092495872,10000.0,0.00017,15]
[366159623,1750092495897,10000.0,0.00017,15]
[366159624,1750092495920,10000.0,0.00017,15]
[366159625,1750092495944,10000.0,0.00017,15]
[366159626,1750092495969,6098.31693534,0.00017,15]
[366159627,1750092511310,200.0,0.00023839,120]
[366159629,1750092517233,3901.68306466,0.00019,2]
[366159630,1750092517259,1098.31693534,0.00019,2]
[366159634,1750092527894,278.86595118,0.00018598,2]
[366159635,1750092532620,2131.8239863,0.00019,2]
[366159636,1750092544840,1141.29,0.000246,120]
[366159638,1750092559116,3375.52271451,0.000189,2]
[366159639,1750092577227,3115.47041267,0.00019,2]
[366159640,1750092577251,1884.52958733,0.00019,2]
[366159643,1750092592990,5000.0,0.00019,2]
[366159652,1750092632025,-430.7062918,0.00019024,2]
[366159653,1750092632035,-158.53209674,0.00019073,2]
[366159654,1750092632046,-154.15271674,0.00019073,2]
[366159655,1750092632055,-157.0,0.000191,2]
[366159656,1750092632065,-300.0,0.00019172,2]
[366159658,1750092632083,-1369.75671283,0.00019173,2]
[366159789,1750092637126,3115.47041267,0.00019,2]
[366159790,1750092637151,1884.52958733,0.00019,2]
[366159797,1750092637816,-500.0,0.00019172,2]
[366159799,1750092637827,-500.0,0.00019172,2]
[366159800,1750092637838,-500.0,0.00019172,2]
[366159801,1750092637848,-500.0,0.00019172,2]
[366159802,1750092637858,-360.54023137,0.00019172,2]
[366159803,1750092637869,-419.94862976,0.00019172,2]
[366159804,1750092637879,-500.0,0.00019172,2]
[366159805,1750092637889,-476.225,0.00019172,2]
[366159806,1750092637899,-500.0,0.00019172,2]
[366159807,1750092637909,-500.0,0.00019172,2]
[366159808,1750092637919,-500.0,0.00019172,2]
[366159809,1750092637930,-500.0,0.00019172,2]
[366159810,1750092637943,-500.0,0.00019172,2]
[366159811,1750092637953,-500.0,0.00019172,2]
[366159813,1750092637965,-500.0,0.00019172,2]
[366159814,1750092637974,-528.11823645,0.00019172,2]
[366159815,1750092637984,-500.0,0.00019172,2]
[366159816,1750092637994,-553.19760301,0.00019172,2]
[366159817,1750092638004,-390.87095154,0.00019172,2]
[366159818,1750092638014,-500.0,0.00019172,2]
[366159819,1750092638024,-500.0,0.00019172,2]
[366159820,1750092638033,-20760.53263537,0.00019173,2]
[366159821,1750092638043,-300.0,0.00019173,2]
[366159823,1750092638053,-1000.0,0.00019176,2]
[366159824,1750092638062,-1000.0,0.00019177,2]
[366159825,1750092638072,-1000.0,0.00019177,2]
[366159826,1750092638081,-7554.6736794,0.00019178,2]
[366159827,1750092638091,-181.51141,0.00019178,2]
[366159828,1750092638100,-1000.0,0.00019451,2]
[366159829,1750092638110,-151.0,0.000195,2]
[366159830,1750092638120,-179.83814567,0.00019699,2]
[366159831,1750092638130,-1000.0,0.00019725,2]
[366159832,1750092638139,-151.0,0.000198,2]
[366159833,1750092638148,-160.0,0.00019998,2]
[366159834,1750092638158,-1000.0,0.00019999,2]
[366159835,1750092638168,-538.4999038,0.0002,2]
[366159836,1750092638178,-463.663784,0.00020187,2]
[366159837,1750092638187,-1000.0,0.00020272,2]
[366159838,1750092638197,-164.989,0.00020468,2]
[366159839,1750092638207,-158.53209674,0.00020521,2]
[366159840,1750092638216,-1400.29,0.00020576,2]
[366159841,1750092638225,-157.54201154,0.00020702,2]
[366159842,1750092638235,-500.0,0.00020702,2]
[366159843,1750092638244,-500.0,0.00020702,2]
[366159844,1750092638254,-500.0,0.00020702,2]
[366159845,1750092638263,-512.91693786,0.00020702,2]
[366159846,1750092638273,-1000.0,0.00020734,2]
[366159847,1750092638283,-160.0,0.0002075,2]
[366159848,1750092638293,-160.0,0.00020757,2]
[366159849,1750092638302,-424.54874296,0.00020757,2]
[366159850,1750092638312,-160.0,0.00020757,2]
[366159851,1750092638322,-229.90125484,0.00020757,2]
[366159852,1750092638331,-835.67987521,0.00020757,2]
[366159853,1750092638341,-308.0,0.00020895,2]
[366159854,1750092638351,-500.0,0.00021064,2]
[366159855,1750092638362,-1000.0,0.00021094,2]
[366159856,1750092638372,-160.0,0.00021368,2]
[366159857,1750092638381,-1000.0,0.00021642,2]
[366159858,1750092638391,-460.0,0.00021917,4]
[366159859,1750092638401,-300.0,0.00021917,4]
[366159860,1750092638410,-460.0,0.00021917,4]
[366159861,1750092638420,-460.0,0.00021917,4]
[366159862,1750092638429,-460.0,0.00021917,4]
[366159863,1750092638440,-460.0,0.00021917,4]
[366159864,1750092638449,-601.51963669,0.00021917,4]
[366159865,1750092638459,-460.0,0.00021917,4]
[366159866,1750092638468,-446.63043916,0.00021917,4]
[366159867,1750092638478,-460.0,0.00021917,4]
[366159868,1750092638487,-460.0,0.00021917,4]
[366159869,1750092638497,-792.24,0.00021917,4]
[366159870,1750092638507,-460.0,0.00021917,4]
[366159871,1750092638517,-460.0,0.00021917,4]
[366159872,1750092638527,-765.7,0.00021917,4]
[366159873,1750092638536,-460.0,0.00021917,4]
[366159874,1750092638546,-460.0,0.00021917,4]
[366159875,1750092638556,-460.0,0.00021917,4]
[366159876,1750092638566,-460.0,0.00021917,4]
[366159877,1750092638576,-270.0,0.00021917,4]
[366159878,1750092638585,-460.0,0.00021917,4]
[366159879,1750092638595,-460.0,0.00021917,4]
[366159880,1750092638605,-504.41,0.00021917,4]
[366159881,1750092638615,-460.0,0.00021917,4]
[366159882,1750092638625,-300.65013896,0.00021917,4]
[366159883,1750092638635,-460.0,0.00021917,4]
[366159884,1750092638644,-460.0,0.00021917,4]
[366159885,1750092638654,-460.0,0.00021917,4]
[366159886,1750092638664,-460.0,0.00021917,4]
[366159887,1750092638674,-597.64,0.00021917,4]
[366159888,1750092638684,-460.0,0.00021917,4]
[366159889,1750092638694,-460.0,0.00021917,4]
[366159890,1750092638704,-460.0,0.00021917,4]
[366159891,1750092638713,-460.0,0.00021917,4]
[366159892,1750092638723,-185.42349905,0.00021917,4]
[366159893,1750092638734,-460.0,0.00021917,4]
[366159894,1750092638744,-460.0,0.00021917,4]
[366159895,1750092638754,-460.0,0.00021917,4]
[366159896,1750092638764,-460.0,0.00021917,4]
[366159897,1750092638774,-460.0,0.00021917,4]
[366159898,1750092638783,-460.0,0.00021917,4]
[366159899,1750092638794,-1357.78,0.00021917,4]
[366159900,1750092638805,-460.0,0.00021917,4]
[366159901,1750092638814,-698.17,0.00021917,4]
[366159902,1750092638823,-460.0,0.00021917,4]
[366159903,1750092638833,-460.0,0.00021917,4]
[366159904,1750092638843,-460.0,0.00021917,4]
[366159905,1750092638852,-786.1,0.00021917,4]
[366159906,1750092638862,-1049.09,0.00021917,4]
[366159907,1750092638872,-942.21,0.00021917,4]
[366159908,1750092638881,-460.0,0.00021917,4]
[366159909,1750092638891,-460.0,0.00021917,4]
[366159910,1750092638900,-460.0,0.00021917,4]
[366159911,1750092638909,-460.0,0.00021917,4]
[366159912,1750092638919,-607.21,0.00021917,4]
[366159913,1750092638928,-460.0,0.00021917,4]
[366159914,1750092638942,-1000.0,0.00021994,2]
[366159915,1750092638951,-1000.0,0.00021994,2]
[366159916,1750092638961,-1000.0,0.00021994,2]
[366159917,1750092638970,-1000.0,0.00021994,2]
[366159918,1750092638982,-1000.0,0.00021994,2]
[366159919,1750092638992,-1000.0,0.00021994,2]
[366159920,1750092639001,-1000.0,0.00021994,2]
[366159921,1750092639011,-1000.0,0.00021994,2]
[366159922,1750092639021,-178.0,0.00022,2]
[366159923,1750092639032,-309.32545948,0.00022091,2]
[366159924,1750092639043,-417.51,0.00022181,10]
[366159925,1750092639053,-1000.0,0.0002219,2]
[366159926,1750092639063,-504.31528453,0.00022191,4]
[366159927,1750092639073,-460.0,0.00022191,4]
[366159928,1750092639083,-460.0,0.00022191,4]
[366159929,1750092639093,-792.24,0.00022191,4]
[366159930,1750092639103,-460.0,0.00022191,4]
[366159931,1750092639113,-460.0,0.00022191,4]
[366159932,1750092639123,-765.7,0.00022191,4]
[366159933,1750092639133,-460.0,0.00022191,4]
[366159934,1750092639145,-460.0,0.00022191,4]
[366159935,1750092639155,-460.0,0.00022191,4]
[366159936,1750092639165,-460.0,0.00022191,4]
[366159937,1750092639175,-460.0,0.00022191,4]
[366159938,1750092639185,-504.41,0.00022191,4]
[366159939,1750092639197,-460.0,0.00022191,4]
[366159940,1750092639208,-460.0,0.00022191,4]
[366159941,1750092639218,-460.0,0.00022191,4]
[366159942,1750092639228,-460.0,0.00022191,4]
[366159943,1750092639238,-597.64,0.00022191,4]
[366159944,1750092639248,-460.0,0.00022191,4]
[366159945,1750092639257,-460.0,0.00022191,4]
[366159946,1750092639267,-514.53333482,0.00022191,4]
[366159947,1750092639278,-460.0,0.00022191,4]
[366159948,1750092639288,-460.0,0.00022191,4]
[366159949,1750092639300,-460.0,0.00022191,4]
[366159951,1750092639311,-460.0,0.00022191,4]
[366159952,1750092639321,-460.0,0.00022191,4]
[366159954,1750092639331,-460.0,0.00022191,4]
[366159956,1750092639342,-1357.78,0.00022191,4]
[366159957,1750092639352,-460.0,0.00022191,4]
[366159958,1750092639362,-698.17,0.00022191,4]
[366159959,1750092639372,-460.0,0.00022191,4]
[366159960,1750092639381,-460.0,0.00022191,4]
[366159961,1750092639391,-786.1,0.00022191,4]
[366159962,1750092639401,-1049.09,0.00022191,4]
[366159963,1750092639410,-942.21,0.00022191,4]
[366159964,1750092639419,-460.0,0.00022191,4]
[366159965,1750092639429,-460.0,0.00022191,4]
[366159966,1750092639438,-460.0,0.00022191,4]
[366159967,1750092639449,-460.0,0.00022191,4]
[366159968,1750092639459,-607.21,0.00022191,4]
[366159969,1750092639468,-460.0,0.00022191,4]
[366159970,1750092639478,-702.29,0.00022219,6]
[366159972,1750092639488,-702.29,0.00022319,3]
[366159973,1750092639498,-500.0,0.00022411,2]
[366159975,1750092639507,-500.0,0.00022411,2]
[366159977,1750092639518,-702.29,0.00022419,6]
[366159979,1750092639527,-2800.58,0.00022447,2]
[366159980,1750092639537,-460.0,0.00022465,4]
[366159981,1750092639547,-460.0,0.00022465,4]
[366159982,1750092639556,-792.24,0.00022465,4]
[366159984,1750092639567,-460.0,0.00022465,4]
[366159985,1750092639576,-460.0,0.00022465,4]
[366159986,1750092639586,-765.7,0.00022465,4]
[366159987,1750092639597,-460.0,0.00022465,4]
[366159988,1750092639607,-460.0,0.00022465,4]
[366159989,1750092639617,-460.0,0.00022465,4]
[366159990,1750092639627,-460.0,0.00022465,4]
[366159991,1750092639638,-460.0,0.00022465,4]
[366159992,1750092639648,-504.41,0.00022465,4]
[366159993,1750092639658,-159.41999682,0.00022465,4]
[366159994,1750092639668,-460.0,0.00022465,4]
[366159995,1750092639678,-460.0,0.00022465,4]
[366159996,1750092639688,-460.0,0.00022465,4]
[366159997,1750092639698,-597.64,0.00022465,4]
[366159998,1750092639708,-460.0,0.00022465,4]
[366159999,1750092639717,-460.0,0.00022465,4]
[366160000,1750092639727,-460.0,0.00022465,4]
[366160001,1750092639737,-460.0,0.00022465,4]
[366160002,1750092639747,-460.0,0.00022465,4]
[366160003,1750092639758,-460.0,0.00022465,4]
[366160004,1750092639768,-460.0,0.00022465,4]
[366160005,1750092639778,-460.0,0.00022465,4]
[366160006,1750092639788,-1357.78,0.00022465,4]
[366160007,1750092639798,-460.0,0.00022465,4]
[366160008,1750092639809,-698.17,0.00022465,4]
[366160009,1750092639819,-460.0,0.00022465,4]
[366160011,1750092639828,-460.0,0.00022465,4]
[366160012,1750092639838,-786.1,0.00022465,4]
[366160013,1750092639849,-1049.09,0.00022465,4]
[366160014,1750092639859,-942.21,0.00022465,4]
[366160015,1750092639868,-460.0,0.00022465,4]
[366160017,1750092639878,-460.0,0.00022465,4]
[366160019,1750092639888,-460.0,0.00022465,4]
[366160021,1750092639899,-460.0,0.00022465,4]
[366160023,1750092639908,-607.21,0.00022465,4]
[366160025,1750092639918,-460.0,0.00022465,4]
[366160027,1750092639927,-702.29,0.00022519,7]
[366160029,1750092639941,-309.32545947,0.00022543,2]
[366160031,1750092639951,-181.51141,0.00022603,2]
[366160033,1750092639961,-702.29,0.00022619,5]
[366160035,1750092639971,-702.29,0.00022719,2]
[366160037,1750092639982,-226.73,0.00022729,3]
[366160039,1750092639992,-188.95,0.00022729,3]
[366160041,1750092640001,-566.85,0.00022729,3]
[366160042,1750092640012,-460.0,0.00022739,4]
[366160044,1750092640022,-460.0,0.00022739,4]
[366160047,1750092640032,-792.24,0.00022739,4]
[366160049,1750092640042,-460.0,0.00022739,4]
[366160065,1750092640150,-460.0,0.00022739,4]
[366160068,1750092640189,-765.7,0.00022739,4]
[366160070,1750092640199,-460.0,0.00022739,4]
[366160072,1750092640209,-460.0,0.00022739,4]
[366160074,1750092640219,-460.0,0.00022739,4]
[366160076,1750092640228,-460.0,0.00022739,4]
[366160078,1750092640238,-460.0,0.00022739,4]
[366160080,1750092640248,-504.41,0.00022739,4]
[366160082,1750092640258,-460.0,0.00022739,4]
[366160084,1750092640267,-460.0,0.00022739,4]
[366160086,1750092640277,-460.0,0.00022739,4]
[366160088,1750092640287,-597.64,0.00022739,4]
[366160090,1750092640297,-460.0,0.00022739,4]
[366160092,1750092640306,-460.0,0.00022739,4]
[366160094,1750092640315,-460.0,0.00022739,4]
[366160096,1750092640325,-460.0,0.00022739,4]
[366160098,1750092640334,-434.33329405,0.00022739,4]
[366160100,1750092640344,-460.0,0.00022739,4]
[366160102,1750092640354,-460.0,0.00022739,4]
[366160104,1750092640363,-460.0,0.00022739,4]
[366160106,1750092640372,-1357.78,0.00022739,4]
[366160108,1750092640382,-460.0,0.00022739,4]
[366160110,1750092640391,-698.17,0.00022739,4]
[366160112,1750092640400,-460.0,0.00022739,4]
[366160114,1750092640410,-310.61,0.00022739,4]
[366160116,1750092640419,-786.1,0.00022739,4]
[366160118,1750092640428,-1049.09,0.00022739,4]
[366160120,1750092640437,-942.21,0.00022739,4]
[366160122,1750092640448,-460.0,0.00022739,4]
[366160124,1750092640457,-460.0,0.00022739,4]
[366160126,1750092640467,-460.0,0.00022739,4]
[366160128,1750092640477,-460.0,0.00022739,4]
[366160130,1750092640487,-607.21,0.00022739,4]
[366160132,1750092640497,-460.0,0.00022739,4]
[366160134,1750092640506,-500.0,0.00022785,2]
[366160136,1750092640515,-500.31929836,0.00022785,2]
[366160138,1750092640525,-453.47,0.00022809,3]
[366160140,1750092640534,-702.29,0.00022819,7]
[366160142,1750092640543,-883.90438298,0.00022859,2]
[366160144,1750092640553,-1000.0,0.00022891,2]
[366160146,1750092640563,-1000.0,0.00022891,2]
[366160148,1750092640572,-1000.0,0.00022891,2]
[366160150,1750092640582,-1000.0,0.00022891,2]
[366160152,1750092640591,-607.36,0.00022891,2]
[366160154,1750092640601,-702.29,0.00022919,3]
[366160156,1750092640611,-309.32545947,0.00022996,2]
[366160158,1750092640620,-151.0,0.00023,2]
[366160160,1750092640630,-151.0,0.00023,2]
[366160162,1750092640639,-928.8,0.00023,2]
[366160164,1750092640651,-557.13929663,0.00023013,4]
[366160166,1750092640660,-460.0,0.00023013,4]
[366160168,1750092640670,-792.24,0.00023013,4]
[366160170,1750092640683,-589.96,0.00023013,4]
[366160172,1750092640693,-765.7,0.00023013,4]
[366160174,1750092640703,-460.0,0.00023013,4]
[366160176,1750092640712,-460.0,0.00023013,4]
[366160178,1750092640722,-460.0,0.00023013,4]
[366160180,1750092640732,-460.0,0.00023013,4]
[366160182,1750092640742,-460.0,0.00023013,4]
[366160184,1750092640752,-504.41,0.00023013,4]
[366160186,1750092640762,-460.0,0.00023013,4]
[366160188,1750092640773,-460.0,0.00023013,4]
[366160190,1750092640783,-460.0,0.00023013,4]
[366160192,1750092640795,-597.64,0.00023013,4]
[366160194,1750092640805,-460.0,0.00023013,4]
[366160196,1750092640815,-460.0,0.00023013,4]
[366160198,1750092640826,-460.0,0.00023013,4]
[366160200,1750092640837,-366.9046431,0.00023013,4]
[366160202,1750092640847,-460.0,0.00023013,4]
[366160204,1750092640857,-460.0,0.00023013,4]
[366160206,1750092640867,-460.0,0.00023013,4]
[366160208,1750092640877,-1357.78,0.00023013,4]
[366160210,1750092640887,-460.0,0.00023013,4]
[366160212,1750092640897,-698.17,0.00023013,4]
[366160214,1750092640907,-460.0,0.00023013,4]
[366160216,1750092640916,-786.1,0.00023013,4]
[366160218,1750092640926,-1049.09,0.00023013,4]
[366160220,1750092640937,-942.21,0.00023013,4]
[366160222,1750092640951,-460.0,0.00023013,4]
[366160224,1750092640961,-460.0,0.00023013,4]
[366160226,1750092640970,-460.0,0.00023013,4]
[366160227,1750092640979,-607.21,0.00023013,4]
[366160230,1750092640989,-178.0,0.00023014,7]
[366160232,1750092640998,-702.29,0.00023019,4]
[366160233,1750092641008,-702.29,0.00023119,3]
[366160236,1750092641019,-151.0,0.00023179,2]
[366160237,1750092641029,-151.0,0.00023179,2]
[366160240,1750092641039,-152.20402766,0.00023179,2]
[366160241,1750092641049,-1688.0,0.00023179,2]
[366160244,1750092641059,-210.8812712,0.00023179,2]
[366160245,1750092641069,-5000.0,0.00023179,2]
[366160247,1750092641078,-500.0,0.00023179,2]
[366160249,1750092641087,-500.0,0.00023179,2]
[366160251,1750092641097,-500.0,0.00023179,2]
[366160253,1750092641107,-500.0,0.00023179,2]
[366160255,1750092641116,-500.0,0.00023179,2]
[366160257,1750092641126,-500.0,0.00023179,2]
[366160259,1750092641135,-500.0,0.00023179,2]
[366160261,1750092641145,-500.0,0.00023179,2]
[366160263,1750092641155,-500.0,0.00023179,2]
[366160265,1750092641164,-500.0,0.00023179,2]
[366160267,1750092641173,-207.4,0.00023179,2]
[366160269,1750092641184,-500.0,0.00023179,2]
[366160271,1750092641193,-500.0,0.00023179,2]
[366160273,1750092641203,-500.0,0.00023179,2]
[366160275,1750092641212,-500.0,0.00023179,2]
[366160277,1750092641221,-500.0,0.00023179,2]
[366160279,1750092641231,-500.0,0.00023179,2]
[366160281,1750092641240,-500.0,0.00023179,2]
[366160283,1750092641250,-500.0,0.00023179,2]
[366160285,1750092641259,-500.0,0.00023179,2]
[366160287,1750092641269,-500.0,0.00023179,2]
[366160289,1750092641278,-500.0,0.00023179,2]
[366160291,1750092641287,-500.0,0.00023179,2]
[366160293,1750092641297,-500.0,0.00023179,2]
[366160295,1750092641306,-500.0,0.00023179,2]
[366160297,1750092641316,-500.0,0.00023179,2]
[366160299,1750092641325,-500.0,0.00023179,2]
[366160301,1750092641334,-500.0,0.00023179,2]
[366160303,1750092641343,-500.0,0.00023179,2]
[366160305,1750092641353,-500.0,0.00023179,2]
[366160307,1750092641363,-500.0,0.00023179,2]
[366160308,1750092641372,-1031.38245891,0.00023179,2]
[366160310,1750092641381,-702.29,0.00023219,5]
[366160312,1750092641391,-1750.45600006,0.00023234,2]
[366160314,1750092641401,-492.16,0.00023278,3]
[366160316,1750092641410,-246.08,0.00023278,3]
[366160318,1750092641420,-738.26,0.00023278,3]
[366160320,1750092641429,-353.15,0.00023287,4]
[366160322,1750092641439,-792.24,0.00023287,4]
[366160324,1750092641450,-765.7,0.00023287,4]
[366160326,1750092641459,-460.0,0.00023287,4]
[366160328,1750092641469,-460.0,0.00023287,4]
[366160330,1750092641479,-460.0,0.00023287,4]
[366160332,1750092641489,-460.0,0.00023287,4]
[366160334,1750092641498,-460.0,0.00023287,4]
[366160336,1750092641509,-504.41,0.00023287,4]
[366160338,1750092641518,-257.78299186,0.00023287,4]
[366160340,1750092641527,-460.0,0.00023287,4]
[366160342,1750092641536,-597.64,0.00023287,4]
[366160344,1750092641545,-460.0,0.00023287,4]
[366160346,1750092641554,-460.0,0.00023287,4]
[366160348,1750092641564,-460.0,0.00023287,4]
[366160350,1750092641575,-460.0,0.00023287,4]
[366160352,1750092641584,-1357.78,0.00023287,4]
[366160354,1750092641594,-698.17,0.00023287,4]
[366160356,1750092641603,-786.1,0.00023287,4]
[366160357,1750092641612,-1049.09,0.00023287,4]
[366160360,1750092641622,-942.21,0.00023287,4]
[366160361,1750092641632,-460.0,0.00023287,4]